bitfinex-derivatives/quotes_BTCF0:USTF0_20260106
["timestamp","ask_amount","ask_price","bid_price","bid_amount"]
[1767736806114,0.11430743,93440.0,93420.0,0.010709]
[1767736806309,0.10023805,93440.0,93422.0,0.09669719]
[1767736806516,0.07923541,93434.0,93422.0,0.09112]
[1767736806720,0.05763637,93433.0,93417.0,0.09112]
[1767736807118,0.15684556,93426.0,93400.0,0.010711]
[1767736807321,0.12519848,93410.0,93394.0,0.09112]
[1767736807521,0.7392,93436.0,93392.0,0.09112]
[1767736807522,0.15684556,93414.0,93392.0,0.09112]
[1767736807816,0.15918225,93413.0,93392.0,0.09112]
[1767736808117,0.15918225,93409.0,93388.0,0.101832]
[1767736808523,0.15918225,93409.0,93392.0,0.010712]
[1767736809522,0.15918225,93409.0,93392.0,0.004712]
[1767736809922,0.09920919,93409.0,93392.0,0.004712]
[1767736810122,0.010709,93414.0,93392.0,0.004712]
[1767736810631,0.09920919,93416.0,93392.0,0.10140919]
[1767736810827,0.09112,93418.0,93393.0,0.09669719]
[1767736811032,0.010708,93423.0,93399.0,0.07653909]
[1767736811333,0.010708,93423.0,93403.0,0.09669719]
[1767736811633,0.09112,93426.0,93401.0,0.010711]
[1767736811634,0.09112,93426.0,93405.0,0.09669719]
[1767736811822,0.010707,93432.0,93409.0,0.10740719]
[1767736812129,0.09112,93434.0,93412.0,0.10740619]
[1767736812336,0.09112,93434.0,93412.0,0.19852619]
[1767736812530,0.02486174,93440.0,93416.0,0.07653909]
[1767736812735,0.11298174,93440.0,93417.0,0.09669719]
[1767736812938,0.11298174,93440.0,93418.0,0.09669719]
[1767736813437,0.10227574,93440.0,93420.0,0.09669719]
[1767736814038,0.01115574,93440.0,93422.0,0.18394428]
[1767736814336,0.01115574,93440.0,93400.0,0.12519848]
[1767736814337,0.01448494,93459.0,93442.0,0.010706]
[1767736814536,0.05597106,93469.0,93443.0,0.18781719]
[1767736814537,0.10991219,93468.0,93443.0,0.18781719]
[1767736814737,0.16560964,93468.0,93443.0,0.18781719]
[1767736814935,0.007703,93473.0,93451.0,0.07653909]
[1767736815136,0.01470304,93473.0,93453.0,0.010705]
[1767736815338,0.09112,93476.0,93456.0,0.09669719]
[1767736815545,0.09112,93476.0,93457.0,0.010704]
[1767736815732,0.10527061,93476.0,93457.0,0.09669719]
[1767736815933,0.010702,93475.0,93454.0,0.09108]
[1767736816436,0.05510255,93470.0,93444.0,0.10740319]
[1767736816641,0.12519848,93464.0,93445.0,0.09108]
[1767736816839,0.010703,93468.0,93450.0,0.09669719]
[1767736817037,0.010705,93454.0,93438.0,0.09108]
[1767736817635,0.010704,93459.0,93438.0,0.09108]
[1767736818643,0.010704,93463.0,93439.0,0.09669719]
[1767736818844,0.010704,93463.0,93440.0,0.09669719]
[1767736819053,0.010704,93463.0,93438.0,0.101787]
[1767736819054,0.09108,93466.0,93448.0,0.09669719]
[1767736819351,0.09108,93473.0,93452.0,0.010705]
[1767736819645,0.09108,93473.0,93446.0,0.07653909]
[1767736819646,0.101783,93473.0,93453.0,0.18777719]
[1767736820146,0.101783,93473.0,93454.0,0.10740219]
[1767736820353,0.010702,93475.0,93457.0,0.18394028]
[1767736820541,0.01449082,93476.0,93453.0,0.101785]
[1767736820742,0.010703,93470.0,93453.0,0.08808]
[1767736822349,0.010703,93474.0,93453.0,0.18477719]
[1767736822551,0.010703,93474.0,93455.0,0.010705]
[1767736822752,0.010703,93474.0,93455.0,0.10740219]
[1767736823148,0.0143603,93476.0,93457.0,0.010704]
[1767736823354,0.09920919,93484.0,93453.0,0.08808]
[1767736823355,0.010702,93481.0,93461.0,0.09669719]
[1767736823855,0.010702,93481.0,93463.0,0.09669719]
[1767736824048,0.010702,93481.0,93464.0,0.09108]
[1767736824357,0.010702,93478.0,93465.0,0.09669719]
[1767736824951,0.010702,93478.0,93448.0,0.34364]
[1767736824952,0.010703,93472.0,93452.0,0.09669719]
[1767736825138,0.010704,93460.0,93438.0,0.09669719]
[1767736825342,0.010706,93448.0,93430.0,0.18773719]
[1767736825555,0.010706,93444.0,93430.0,0.18773719]
[1767736825755,0.010706,93448.0,93430.0,0.18773719]
[1767736826152,0.06572917,93457.0,93430.0,0.18773719]
[1767736826350,0.09920919,93458.0,93432.0,0.09669719]
[1767736826551,0.09920919,93458.0,93432.0,0.10740419]
[1767736827848,0.010705,93452.0,93432.0,0.10740419]
[1767736828157,0.010705,93450.0,93432.0,0.10740419]
[1767736828351,0.06774198,93454.0,93429.0,0.09104]
[1767736828543,0.09920919,93447.0,93419.0,0.17323628]
[1767736828749,0.010707,93435.0,93419.0,0.010709]
[1767736828950,0.23504647,93430.0,93402.0,0.09669719]
[1767736829155,0.22433847,93430.0,93403.0,0.101751]
[1767736829351,0.13583828,93420.0,93403.0,0.09104]
[1767736829856,0.13583828,93420.0,93295.0,0.53436869]
[1767736829857,0.010709,93418.0,93399.0,0.09104]
[1767736830053,0.09104,93424.0,93406.0,0.01071]
[1767736830266,0.09104,93424.0,93406.0,0.08724909]
[1767736830650,0.09104,93424.0,93406.0,0.01071]
[1767736831260,0.010708,93423.0,93405.0,0.07653909]
[1767736831450,0.09104,93424.0,93399.0,0.09104]
[1767736832359,0.010709,93420.0,93403.0,0.010711]
[1767736832547,0.010708,93423.0,93403.0,0.010711]
[1767736833462,0.010708,93423.0,93405.0,0.01071]
[1767736833961,0.09104,93424.0,93405.0,0.01071]
[1767736834363,0.101748,93424.0,93405.0,0.01071]
[1767736835954,0.101748,93424.0,93407.0,0.01071]
[1767736836155,0.09104,93424.0,93407.0,0.01071]
[1767736836663,0.09920919,93432.0,93412.0,0.010709]
[1767736836961,0.09108,93427.0,93412.0,0.010709]
[1767736837469,0.09108,93427.0,93404.0,0.17652467]
[1767736838264,0.09108,93427.0,93408.0,0.01071]
[1767736838648,0.010708,93423.0,93404.0,0.09954899]
[1767736838855,0.09937874,93421.0,93399.0,0.09104]
[1767736839057,0.06894899,93419.0,93388.0,0.09954899]
[1767736839256,0.01071,93413.0,93393.0,0.010712]
[1767736839450,0.01071,93413.0,93375.0,0.595234]
[1767736839451,0.16832773,93409.0,93381.0,0.09954899]
[1767736839659,0.09937874,93401.0,93387.0,0.09108]
[1767736839863,0.09937874,93401.0,93360.0,0.010715]
[1767736839864,0.010712,93392.0,93372.0,0.010714]
[1767736840067,0.010712,93392.0,93372.0,0.101794]
[1767736840766,0.09946668,93391.0,93375.0,0.010714]
[1767736841569,8.794e-05,93391.0,93379.0,0.010713]
[1767736841865,0.01511344,93392.0,93372.0,0.16805568]
[1767736841866,0.01511344,93392.0,93377.0,0.07697568]
[1767736842066,0.101791,93402.0,93385.0,0.010713]
[1767736842366,0.01503062,93402.0,93385.0,0.07697568]
[1767736842556,0.01503062,93402.0,93384.0,0.09954899]
[1767736842557,0.0085681,93413.0,93394.0,0.010712]
[1767736843959,0.02590533,93413.0,93391.0,0.07697568]
[1767736844160,0.01071,93413.0,93391.0,0.07697568]
[1767736844569,0.01071,93413.0,93396.0,0.010711]
[1767736846058,0.01071,93411.0,93393.0,0.010712]
[1767736847574,0.01533152,93413.0,93391.0,0.07697568]
[1767736847765,0.010709,93414.0,93391.0,0.17652467]
[1767736848462,0.01071,93412.0,93391.0,0.17652467]
[1767736850171,0.01071,93412.0,93395.0,0.010711]
[1767736850669,0.01563674,93413.0,93394.0,0.07697568]
[1767736850868,0.01071,93411.0,93394.0,0.08768768]
[1767736851667,0.01071,93411.0,93396.0,0.010711]
[1767736855270,0.01528393,93413.0,93400.0,0.010711]
[1767736855472,0.010709,93415.0,93400.0,0.010711]
[1767736855666,0.01071,93413.0,93397.0,0.010711]
[1767736856471,0.010711,93401.0,93389.0,0.09108]
[1767736856673,0.01071,93407.0,93392.0,0.010712]
[1767736856866,0.09937874,93408.0,93392.0,0.010712]
[1767736857066,0.01071,93410.0,93394.0,0.010712]
[1767736857872,0.010711,93400.0,93389.0,0.09108]
[1767736858573,0.09937874,93410.0,93389.0,0.16805568]
[1767736858768,0.01071,93406.0,93390.0,0.07697568]
[1767736860170,0.01071,93406.0,93390.0,0.08768768]
[1767736860371,0.01071,93410.0,93396.0,0.08768668]
[1767736860780,0.01071,93410.0,93396.0,0.010711]
[1767736860970,0.01071,93410.0,93394.0,0.010712]
[1767736862480,0.01071,93410.0,93395.0,0.010711]
[1767736862678,0.01523025,93413.0,93391.0,0.07697568]
[1767736862870,0.09698581,93414.0,93391.0,0.07697568]
[1767736862871,0.09698581,93414.0,93394.0,0.010712]
[1767736863271,0.11226518,93414.0,93394.0,0.010712]
[1767736863677,0.01527937,93414.0,93395.0,0.16288038]
[1767736863873,0.09108,93416.0,93399.0,0.0936379]
[1767736864781,0.09108,93416.0,93401.0,0.010711]
[1767736864978,0.09000644,93421.0,93399.0,0.0936379]
[1767736865181,0.08641189,93441.0,93425.0,0.07006445]
[1767736865182,0.09108,93441.0,93425.0,0.07006445]
[1767736865382,0.10619219,93441.0,93427.0,0.010708]
[1767736865586,0.010706,93440.0,93420.0,0.010709]
[1767736866079,0.010706,93440.0,93422.0,0.010708]
[1767736866280,0.10619219,93441.0,93416.0,0.09975604]
[1767736866476,0.10619219,93441.0,93428.0,0.010708]
[1767736866477,0.01511219,93441.0,93428.0,0.010708]
[1767736866679,0.09108,93445.0,93428.0,0.010708]
[1767736867774,0.09108,93445.0,93430.0,0.010707]
[1767736868175,0.09108,93445.0,93426.0,0.07006445]
[1767736868376,0.09108,93445.0,93427.0,0.07006445]
[1767736868585,0.01532499,93445.0,93432.0,0.07006445]
[1767736868784,0.09108,93447.0,93432.0,0.07006445]
[1767736869188,0.1063513,93447.0,93431.0,0.11046304]
[1767736869681,0.0152713,93447.0,93432.0,0.07006445]
[1767736869879,0.00214022,93449.0,93432.0,0.07006445]
[1767736870080,0.00214022,93449.0,93435.0,0.010707]
[1767736870582,0.01785459,93449.0,93432.0,0.010707]
[1767736870782,0.01785459,93449.0,93436.0,0.010707]
[1767736871487,0.01785459,93449.0,93433.0,0.16982049]
[1767736871688,0.01785459,93449.0,93433.0,0.09975604]
[1767736871985,0.01785459,93449.0,93435.0,0.010707]
[1767736872583,0.01785459,93449.0,93439.0,0.010706]
[1767736872789,0.01785459,93449.0,93438.0,0.010707]
[1767736874184,0.01785459,93449.0,93440.0,0.010706]
[1767736874394,0.010704,93461.0,93438.0,0.07006445]
[1767736874588,0.09108,93460.0,93440.0,0.07006445]
[1767736875186,0.09108,93460.0,93440.0,0.010706]
[1767736875187,0.010704,93458.0,93440.0,0.010706]
[1767736875992,0.010706,93447.0,93434.0,0.09108]
[1767736876191,0.010705,93450.0,93434.0,0.09108]
[1767736876388,0.09000644,93452.0,93434.0,0.101787]
[1767736876791,0.09000644,93452.0,93436.0,0.010707]
[1767736877783,0.09000644,93452.0,93434.0,0.09108]
[1767736879594,0.010706,93445.0,93434.0,0.09108]
[1767736879790,0.15731972,93445.0,93424.0,0.010708]
[1767736879994,0.010706,93441.0,93424.0,0.010708]
[1767736880385,0.15731972,93445.0,93423.0,0.09975604]
[1767736880386,0.010707,93439.0,93423.0,0.09975604]
[1767736880586,0.010707,93439.0,93423.0,0.11046404]
[1767736880888,0.010706,93442.0,93423.0,0.09975604]
[1767736881089,0.010706,93442.0,93423.0,0.16982049]
[1767736881395,0.010706,93442.0,93426.0,0.010708]
[1767736881599,0.15731972,93444.0,93423.0,0.09975604]
[1767736881787,0.010706,93440.0,93424.0,0.010708]
[1767736882695,0.010707,93438.0,93423.0,0.16982049]
[1767736882893,0.010707,93438.0,93423.0,0.11046404]
[1767736883088,0.09108,93450.0,93420.0,0.09108]
[1767736883089,0.010704,93457.0,93442.0,0.07006445]
[1767736883288,0.010705,93455.0,93440.0,0.010706]
[1767736883488,0.09000644,93450.0,93427.0,0.09975604]
[1767736883694,0.09000644,93450.0,93438.0,0.010707]
[1767736884095,0.010705,93454.0,93426.0,0.010708]
[1767736884096,0.010705,93454.0,93437.0,0.010707]
[1767736884298,0.10071144,93457.0,93434.0,0.07006445]
[1767736884498,0.010705,93455.0,93438.0,0.010707]
[1767736885502,0.010705,93453.0,93438.0,0.010707]
[1767736886602,0.15731972,93457.0,93435.0,0.010707]
[1767736886906,0.010705,93449.0,93432.0,0.010707]
[1767736887695,0.010706,93447.0,93432.0,0.010707]
[1767736888296,0.10071144,93450.0,93432.0,0.010707]
[1767736888701,0.10071144,93450.0,93434.0,0.010707]
[1767736889003,0.010705,93448.0,93431.0,0.010707]
[1767736889205,0.010705,93448.0,93431.0,0.08077145]
[1767736889416,0.010705,93451.0,93434.0,0.07006445]
[1767736890305,0.010705,93451.0,93435.0,0.010707]
[1767736891404,0.09000644,93456.0,93439.0,0.010706]
[1767736891997,0.010705,93455.0,93436.0,0.010707]
[1767736892196,0.010705,93455.0,93438.0,0.010707]
[1767736893692,0.010705,93453.0,93435.0,0.07279463]
[1767736893896,0.010705,93450.0,93431.0,0.010707]
[1767736894097,0.06222951,93441.0,93422.0,0.010708]
[1767736894303,0.06222951,93430.0,93419.0,9e-07]
[1767736894508,0.06222951,93430.0,93404.0,0.06208763]
[1767736894509,0.15500495,93421.0,93404.0,0.01071]
[1767736894709,0.010709,93420.0,93404.0,0.01071]
[1767736895106,0.09104,93425.0,93403.0,0.15312763]
[1767736895314,0.09104,93425.0,93409.0,0.06208763]
[1767736895501,0.010708,93425.0,93409.0,0.06208763]
[1767736895698,0.09104,93424.0,93409.0,0.06208763]
[1767736896096,0.09104,93424.0,93416.0,0.010709]
[1767736896298,0.010707,93432.0,93416.0,0.010709]
[1767736896507,0.09104,93427.0,93416.0,0.010709]
[1767736898100,0.09104,93427.0,93418.0,0.010709]
[1767736898303,0.010707,93439.0,93421.0,0.06208763]
[1767736898608,0.010707,93437.0,93421.0,0.06208763]
[1767736900106,0.010707,93437.0,93420.0,0.10725958]
[1767736902314,0.010707,93435.0,93420.0,0.09655058]
[1767736903315,0.010707,93433.0,93420.0,0.09655058]
[1767736903513,0.09277544,93435.0,93413.0,0.15863821]
[1767736903710,0.09277544,93435.0,93413.0,0.16934721]
[1767736903906,0.06222951,93432.0,93411.0,0.01071]
[1767736904108,0.06222951,93432.0,93398.0,0.010711]
[1767736904109,0.09277544,93419.0,93394.0,0.15863821]
[1767736904433,0.10348444,93417.0,93396.0,0.06208763]
[1767736904613,0.010709,93417.0,93397.0,0.15863821]
[1767736904916,0.010709,93417.0,93399.0,0.06208763]
[1767736905104,0.010709,93417.0,93400.0,0.06208763]
[1767736905317,0.010709,93417.0,93400.0,0.07279863]
[1767736907811,0.010709,93421.0,93400.0,0.06208763]
[1767736908012,0.010709,93421.0,93401.0,0.06254351]
[1767736909120,0.010709,93421.0,93403.0,0.010711]
[1767736909506,0.010708,93427.0,93404.0,0.15498097]
[1767736909711,0.09108,93426.0,93413.0,0.07325251]
[1767736910218,0.09108,93426.0,93413.0,0.010709]
[1767736910720,0.101788,93426.0,93410.0,0.10314746]
[1767736911114,0.09108,93426.0,93414.0,0.010709]
[1767736911314,0.09108,93426.0,93416.0,0.07325251]
[1767736911514,0.09108,93426.0,93411.0,0.06254351]
[1767736911716,0.09108,93426.0,93412.0,0.010709]
[1767736915523,0.09108,93426.0,93411.0,0.06254351]
[1767736915824,0.09108,93426.0,93415.0,0.010709]
[1767736916422,0.09108,93426.0,93417.0,0.010709]
[1767736916621,0.09108,93426.0,93420.0,0.010709]
[1767736916924,0.09108,93426.0,93417.0,0.010709]
[1767736917521,0.09108,93426.0,93411.0,0.06254351]
[1767736917522,0.09108,93426.0,93419.0,0.010709]
[1767736917717,0.09108,93426.0,93420.0,0.010709]
[1767736918725,0.09827722,93436.0,93409.0,0.10314746]
[1767736918726,0.10898422,93436.0,93416.0,0.06254351]
[1767736919028,0.010707,93434.0,93420.0,0.010709]
[1767736919224,0.09108,93435.0,93421.0,0.010708]
[1767736919528,0.09108,93436.0,93428.0,0.010708]
[1767736919828,0.09108,93438.0,93428.0,0.010708]
[1767736920019,0.010706,93445.0,93428.0,0.010708]
[1767736920020,0.55803238,93442.0,93428.0,0.010708]
[1767736920221,0.09108,93441.0,93428.0,0.010708]
[1767736920418,0.05975516,93447.0,93436.0,0.010707]
[1767736920722,0.09108,93451.0,93437.0,0.06254351]
[1767736921228,0.09108,93451.0,93434.0,0.09243746]
[1767736921819,0.09108,93451.0,93437.0,0.010707]
[1767736922525,0.09108,93451.0,93439.0,0.010706]
[1767736923126,0.09108,93451.0,93441.0,0.06708556]
[1767736923336,0.09108,93451.0,93441.0,0.05637956]
[1767736923531,0.09108,93451.0,93440.0,0.010706]
[1767736924722,0.010706,93443.0,93428.0,0.05637956]
[1767736924919,0.18515125,93451.0,93424.0,0.010708]
[1767736924920,0.10477725,93442.0,93424.0,0.010708]
[1767736925229,0.09407125,93440.0,93426.0,0.010708]
[1767736925432,0.06685455,93445.0,93426.0,0.010708]
[1767736926226,0.06685455,93445.0,93428.0,0.010708]
[1767736926426,0.05614855,93445.0,93430.0,0.010707]
[1767736926623,0.09431637,93446.0,93430.0,0.010707]
[1767736927233,0.09431637,93446.0,93424.0,0.18118584]
[1767736927234,0.09431637,93446.0,93425.0,0.05637139]
[1767736927531,0.00214022,93449.0,93435.0,0.010707]
[1767736928232,0.00214022,93449.0,93437.0,0.010707]
[1767736929433,0.00214022,93449.0,93434.0,0.010707]
[1767736929935,0.00214022,93449.0,93436.0,0.010707]
[1767736930132,0.010704,93459.0,93443.0,0.15718323]
[1767736930434,0.15046492,93468.0,93445.0,0.05637139]
[1767736930620,0.09108,93467.0,93445.0,0.05637139]
[1767736930821,0.18539637,93467.0,93445.0,0.05637139]
[1767736931236,0.01604704,93467.0,93445.0,0.05637139]
[1767736931436,0.09108,93467.0,93450.0,0.010705]
[1767736932833,0.09108,93467.0,93452.0,0.010705]
[1767736933039,0.10704804,93467.0,93452.0,0.010705]
[1767736934139,0.10704804,93467.0,93451.0,0.05637139]
[1767736934939,0.10704804,93467.0,93451.0,0.06707639]
[1767736935742,0.10704804,93467.0,93455.0,0.010705]
[1767736936738,0.10704804,93467.0,93451.0,0.05637139]
[1767736937437,0.20136441,93467.0,93447.0,0.05637139]
[1767736937933,0.10006629,93460.0,93450.0,0.010705]
[1767736938237,0.10006629,93460.0,93452.0,0.010705]
[1767736938442,0.09431637,93466.0,93452.0,0.010705]
[1767736939634,0.10704804,93467.0,93454.0,0.010705]
[1767736940841,0.10704804,93467.0,93456.0,0.010705]
[1767736941953,0.10704804,93467.0,93447.0,0.05637139]
[1767736942249,0.10704804,93467.0,93454.0,0.010705]
[1767736942448,0.11775104,93467.0,93451.0,0.010705]
[1767736942643,0.11775104,93467.0,93453.0,0.010705]
[1767736943737,0.010704,93465.0,93450.0,0.010705]
[1767736943942,0.10006629,93460.0,93446.0,0.09104]
[1767736944244,0.10006629,93460.0,93451.0,0.010705]
[1767736945948,0.10006629,93461.0,93451.0,0.010705]
[1767736946243,0.10006629,93461.0,93453.0,0.010705]
[1767736946443,0.01596804,93467.0,93458.0,0.010704]
[1767736946641,0.16116892,93465.0,93451.0,0.010705]
[1767736946848,0.01614308,93467.0,93448.0,0.05637139]
[1767736947141,0.15046492,93464.0,93446.0,0.09104]
[1767736947328,0.19438266,93460.0,93446.0,0.09104]
[1767736947535,0.10006629,93460.0,93447.0,0.010706]
[1767736947838,0.10006629,93460.0,93446.0,0.09104]
[1767736948148,0.10006629,93460.0,93453.0,0.010705]
[1767736948344,0.10006629,93463.0,93453.0,0.010705]
[1767736950549,0.16116792,93466.0,93453.0,0.010705]
[1767736951153,0.01633675,93467.0,93458.0,0.010704]
[1767736951332,0.10006629,93470.0,93451.0,0.05637139]
[1767736951538,0.24845733,93470.0,93457.0,0.010704]
[1767736951737,0.14839104,93469.0,93457.0,0.010704]
[1767736952145,0.01644315,93469.0,93463.0,0.010704]
[1767736952446,0.010702,93477.0,93463.0,0.010704]
[1767736952649,0.15909304,93477.0,93463.0,0.010704]
[1767736952848,0.14839104,93476.0,93463.0,0.010704]
[1767736953046,0.14839104,93475.0,93463.0,0.010704]
[1767736953249,0.09477049,93470.0,93450.0,0.05287811]
[1767736953448,0.09477049,93468.0,93449.0,0.06358311]
[1767736953647,0.09477049,93468.0,93461.0,0.010704]
[1767736953834,0.05362055,93472.0,93461.0,0.010704]
[1767736954640,1.6e-07,93476.0,93473.0,0.010703]
[1767736954839,0.010701,93488.0,93470.0,0.010703]
[1767736955041,0.01610492,93488.0,93466.0,0.14990857]
[1767736955249,0.14839104,93488.0,93473.0,0.010703]
[1767736955647,0.14839104,93487.0,93473.0,0.010703]
[1767736955952,0.09477049,93486.0,93473.0,0.010703]
[1767736956342,0.09477049,93486.0,93475.0,0.010702]
[1767736957544,0.09477049,93486.0,93477.0,0.010702]
[1767736957740,0.01580668,93488.0,93477.0,0.010702]
[1767736957937,0.14839104,93492.0,93477.0,0.010702]
[1767736958148,0.09477049,93474.0,93467.0,0.09104]
[1767736958343,0.14839104,93472.0,93461.0,0.09104]
[1767736958539,0.09477049,93479.0,93460.0,0.10006629]
[1767736958849,0.09104,93483.0,93468.0,0.010703]
[1767736959437,0.09104,93483.0,93470.0,0.010703]
[1767736960851,0.101742,93483.0,93467.0,0.010703]
[1767736961152,0.09104,93483.0,93471.0,0.010703]
[1767736961451,0.09104,93483.0,93468.0,0.010703]
[1767736962053,0.09104,93483.0,93470.0,0.010703]
[1767736962445,0.09104,93483.0,93463.0,0.05287811]
[1767736962446,0.09104,93483.0,93472.0,0.010703]
[1767736962640,0.09104,93483.0,93457.0,0.101744]
[1767736962641,0.14839104,93480.0,93457.0,0.010704]
[1767736962843,0.14839104,93480.0,93431.0,0.09627821]
[1767736962844,0.14839104,93459.0,93436.0,0.09104]
[1767736963158,0.10006629,93450.0,93439.0,0.010706]
[1767736963457,0.010705,93453.0,93438.0,0.010707]
[1767736963946,0.10547549,93453.0,93438.0,0.010707]
[1767736964144,0.09477049,93453.0,93438.0,0.010707]
[1767736964340,0.09477049,93453.0,93431.0,0.05287811]
[1767736964341,0.10006629,93450.0,93435.0,0.010707]
[1767736964545,0.19483678,93450.0,93436.0,0.09104]
[1767736964755,0.19483678,93450.0,93437.0,0.010707]
[1767736965055,0.14809625,93462.0,93437.0,0.05287811]
[1767736965245,0.010704,93459.0,93444.0,0.010706]
[1767736965447,0.010704,93457.0,93441.0,0.010706]
[1767736966257,0.09477049,93458.0,93437.0,0.09703046]
[1767736967864,0.10006629,93450.0,93438.0,0.010707]
[1767736968160,0.10006629,93450.0,93436.0,0.09104]
[1767736968359,0.09477049,93449.0,93436.0,0.09104]
[1767736968558,0.09477049,93448.0,93436.0,0.09104]
[1767736968958,0.09477049,93448.0,93434.0,0.010707]
[1767736968959,0.09477049,93440.0,93425.0,0.010708]
[1767736969156,0.10006629,93436.0,93426.0,0.09104]
[1767736969355,0.19483678,93440.0,93426.0,0.09104]
[1767736970255,0.19483678,93440.0,93426.0,0.101748]
[1767736970457,0.19483678,93440.0,93426.0,0.010708]
[1767736970458,0.13408937,93439.0,93426.0,0.010708]
[1767736970658,0.09477049,93435.0,93419.0,0.0931809]
[1767736970864,0.09477049,93435.0,93426.0,0.010708]
[1767736971465,0.09477049,93435.0,93420.0,0.010709]
[1767736971766,0.10006629,93440.0,93431.0,0.010707]
[1767736972159,0.09477049,93448.0,93428.0,0.05287811]
[1767736972364,0.09477049,93448.0,93419.0,0.0931809]
[1767736972365,0.09477049,93461.0,93446.0,0.010706]
[1767736972757,0.10547449,93461.0,93443.0,0.010706]
[1767736973373,0.14302492,93461.0,93443.0,0.010706]
[1767736973561,0.09477049,93460.0,93443.0,0.010706]
[1767736974067,0.03551754,93459.0,93443.0,0.010706]
[1767736974265,0.09477049,93458.0,93443.0,0.010706]
[1767736975465,0.09477049,93458.0,93445.0,0.010706]
[1767736976766,0.0339939,93457.0,93426.0,0.09627821]
[1767736976971,0.09477049,93441.0,93430.0,0.010707]
[1767736977175,0.09477049,93441.0,93428.0,0.09104]
[1767736977466,0.09477049,93441.0,93429.0,0.010708]
[1767736977672,0.09477049,93441.0,93428.0,0.09104]
[1767736978162,0.09477049,93441.0,93428.0,0.101748]
[1767736978363,0.09477049,93441.0,93430.0,0.010707]
[1767736979167,0.09477049,93441.0,93428.0,0.09104]
[1767736979872,0.09477049,93441.0,93429.0,0.010708]
[1767736980371,0.010705,93450.0,93435.0,0.010707]
[1767736980581,0.09477049,93452.0,93438.0,0.010707]
[1767736980877,0.1230644,93452.0,93440.0,0.010706]
[1767736981069,0.09477049,93451.0,93437.0,0.010707]
[1767736981477,0.12254453,93451.0,93437.0,0.010707]
[1767736981678,0.09850033,93450.0,93437.0,0.010707]
[1767736981878,0.12627437,93450.0,93437.0,0.010707]
[1767736982080,0.09104,93455.0,93442.0,0.010706]
[1767736982381,0.18954033,93455.0,93442.0,0.010706]
[1767736982580,0.09850033,93454.0,93442.0,0.010706]
[1767736983484,0.12577314,93460.0,93438.0,0.04834096]
[1767736983670,0.010704,93459.0,93444.0,0.010706]
[1767736985176,0.10074467,93459.0,93444.0,0.010706]
[1767736988183,0.10074467,93459.0,93444.0,0.00846171]
[1767736988782,0.10074467,93459.0,93438.0,0.13938096]
[1767736988783,0.09004067,93459.0,93438.0,0.13938096]
[1767736989470,0.09004067,93459.0,93445.0,0.010706]
[1767736989979,0.010704,93458.0,93445.0,0.010706]
[1767736991382,0.11490514,93459.0,93445.0,0.010706]
[1767736991581,0.09004067,93459.0,93439.0,0.04982927]
[1767736991784,0.010703,93470.0,93450.0,0.04982927]
[1767736992082,0.00213953,93479.0,93462.0,0.010704]
[1767736992083,0.09004067,93475.0,93462.0,0.010704]
[1767736992388,0.11441029,93472.0,93459.0,0.010704]
[1767736992682,0.11441029,93472.0,93450.0,0.04982927]
[1767736992875,0.11441029,93472.0,93460.0,0.010704]
[1767736993067,0.11441029,93472.0,93464.0,0.010704]
[1767736993272,0.09004067,93472.0,93461.0,0.010704]
[1767736994384,0.11432458,93472.0,93461.0,0.010704]
[1767736994680,0.09004067,93472.0,93451.0,0.04982927]
[1767736994881,0.0237943,93477.0,93454.0,0.04982927]
[1767736995089,0.11383497,93477.0,93454.0,0.04982927]
[1767736995280,0.09004067,93476.0,93454.0,0.04982927]
[1767736995780,0.11362619,93476.0,93465.0,0.010703]
[1767736995982,0.11362619,93476.0,93455.0,0.06053427]
[1767736996285,0.09004067,93475.0,93463.0,0.010704]
[1767736997582,0.09004067,93475.0,93460.0,0.010704]
[1767736997788,0.11237909,93475.0,93460.0,0.010704]
[1767736998087,0.10074467,93458.0,93442.0,0.010706]
[1767736998285,0.09004067,93453.0,93443.0,0.09104]
[1767736998579,0.09004067,93453.0,93440.0,0.010706]
[1767736998785,0.09004067,93449.0,93434.0,0.09104]
[1767736998988,0.09004067,93449.0,93438.0,0.010707]
[1767736999378,0.09004067,93449.0,93434.0,0.09104]
[1767737000485,0.09004067,93449.0,93436.0,0.010707]
[1767737001487,0.09004067,93449.0,93438.0,0.010707]
[1767737002083,0.02086926,93453.0,93438.0,0.010707]
[1767737003681,0.02086926,93453.0,93440.0,0.010706]
[1767737003884,0.09004067,93455.0,93434.0,0.09104]
[1767737004082,0.10074567,93455.0,93439.0,0.010706]
[1767737004287,0.09004067,93455.0,93434.0,0.09104]
[1767737004495,0.09004067,93455.0,93441.0,0.010706]
[1767737005592,0.09004067,93455.0,93434.0,0.14086927]
[1767737006999,0.09004067,93455.0,93447.0,0.010706]
[1767737007397,0.09104,93459.0,93447.0,0.010706]
[1767737007598,0.01625994,93466.0,93442.0,0.06053527]
[1767737007790,0.101743,93472.0,93452.0,0.04982927]
[1767737007991,0.101743,93472.0,93456.0,0.010704]
[1767737008192,0.101743,93472.0,93452.0,0.04982927]
[1767737008193,0.01625994,93463.0,93452.0,0.010705]
[1767737008392,0.09004067,93458.0,93446.0,0.09104]
[1767737008587,0.09004067,93458.0,93438.0,0.04982927]
[1767737008886,0.09004067,93458.0,93445.0,0.09104]
[1767737009087,0.09004067,93458.0,93446.0,0.010706]
[1767737009290,0.09004067,93458.0,93442.0,0.09104]
[1767737009505,0.09004067,93458.0,93443.0,0.010706]
[1767737009909,0.09004067,93458.0,93445.0,0.010706]
[1767737011699,0.09004067,93458.0,93442.0,0.09104]
[1767737012510,0.00434252,93457.0,93442.0,0.09104]
[1767737012712,0.0979415,93455.0,93444.0,0.010706]
[1767737012910,0.10182513,93455.0,93444.0,0.010706]
[1767737013111,0.10182513,93455.0,93446.0,0.010706]
[1767737013314,0.10182513,93455.0,93448.0,0.010705]
[1767737015312,0.10182513,93455.0,93445.0,0.010706]
[1767737015713,0.0979415,93455.0,93445.0,0.010706]
[1767737016209,0.10022357,93455.0,93445.0,0.010706]
[1767737016811,0.10022357,93455.0,93442.0,0.101746]
[1767737017407,0.0979415,93455.0,93445.0,0.010706]
[1767737018399,0.0979415,93455.0,93431.0,0.09540171]